[Event "Titled Tuesday Blitz October 25 Late 2022"]
[White "Yeletsky, Ivan"]
[Black "Yurovskykh, Oleksandr"]
[WhiteFideId "24180327"]
[BlackFideId "14134020"]
[WhiteElo "2391"]
[BlackElo "2303"]
[Result "1/2-1/2"]
[Round "02"]
[TimeControl "180+1"]
[Date "2022.10.26"]
[WhiteClock "0:00:02"]
[BlackClock "0:00:14"]

1. d4 {[%clk 0:03:00]}  d5 {[%clk 0:02:59]} 2. c4 {[%clk 0:03:00]}  e6 {[%clk 0:02:59]} 3. Nf3 {[%clk 0:03:00]}  Nf6 {[%clk 0:03:00]} 4. g3 {[%clk 0:03:00]}  Bb4+ {[%clk 0:03:00]} 5. Bd2 {[%clk 0:03:00]}  Be7 {[%clk 0:03:01]} 6. Bg2 {[%clk 0:03:01]}  O-O {[%clk 0:03:01]} 7. O-O {[%clk 0:03:01]}  c6 {[%clk 0:03:01]} 8. Qc2 {[%clk 0:03:01]}  Nbd7 {[%clk 0:03:01]} 9. Rd1 {[%clk 0:03:01]}  b6 {[%clk 0:03:02]} 10. b3 {[%clk 0:03:01]}  Ba6 {[%clk 0:02:56]} 11. a4 {[%clk 0:03:01]}  Qc8 {[%clk 0:02:24]} 12. a5 {[%clk 0:02:53]}  dxc4 {[%clk 0:02:21]} 13. bxc4 {[%clk 0:02:51]}  c5 {[%clk 0:02:22]} 14. Na3 {[%clk 0:02:26]}  Bb7 {[%clk 0:02:16]} 15. e3 {[%clk 0:02:19]}  Be4 {[%clk 0:02:15]} 16. Qa2 {[%clk 0:02:16]}  Qb7 {[%clk 0:02:15]} 17. Ne1 {[%clk 0:02:13]}  Bxg2 {[%clk 0:02:15]} 18. Nxg2 {[%clk 0:02:14]}  cxd4 {[%clk 0:02:09]} 19. exd4 {[%clk 0:02:14]}  Rac8 {[%clk 0:02:06]} 20. axb6 {[%clk 0:02:08]}  axb6 {[%clk 0:02:07]} 21. Nb5 {[%clk 0:02:08]}  Ra8 {[%clk 0:02:03]} 22. Qb3 {[%clk 0:02:03]}  Rxa1 {[%clk 0:02:03]} 23. Rxa1 {[%clk 0:02:04]}  Ra8 {[%clk 0:02:03]} 24. Re1 {[%clk 0:01:47]}  Bf8 {[%clk 0:02:00]} 25. Bg5 {[%clk 0:01:27]}  h6 {[%clk 0:01:56]} 26. Bxf6 {[%clk 0:01:27]}  Nxf6 {[%clk 0:01:57]} 27. Qc2 {[%clk 0:01:21]}  Qc6 {[%clk 0:01:48]} 28. Nf4 {[%clk 0:01:17]}  Rc8 {[%clk 0:01:36]} 29. Rc1 {[%clk 0:01:17]}  Qe4 {[%clk 0:01:31]} 30. Qxe4 {[%clk 0:00:46]}  Nxe4 {[%clk 0:01:32]} 31. Nd3 {[%clk 0:00:46]}  Nd6 {[%clk 0:01:24]} 32. Nxd6 {[%clk 0:00:45]}  Bxd6 {[%clk 0:01:25]} 33. Kg2 {[%clk 0:00:39]}  Kf8 {[%clk 0:01:15]} 34. c5 {[%clk 0:00:40]}  bxc5 {[%clk 0:01:15]} 35. dxc5 {[%clk 0:00:41]}  Bc7 {[%clk 0:01:14]} 36. Kf3 {[%clk 0:00:33]}  Ke7 {[%clk 0:01:13]} 37. Ke3 {[%clk 0:00:33]}  Kd7 {[%clk 0:01:13]} 38. Nb4 {[%clk 0:00:31]}  Ra8 {[%clk 0:01:06]} 39. Rd1+ {[%clk 0:00:30]}  Ke8 {[%clk 0:01:02]} 40. Nc6 {[%clk 0:00:27]}  Ra2 {[%clk 0:00:47]} 41. Rd2 {[%clk 0:00:26]}  Rxd2 {[%clk 0:00:43]} 42. Kxd2 {[%clk 0:00:26]}  Kd7 {[%clk 0:00:43]} 43. Nd4 {[%clk 0:00:25]}  g6 {[%clk 0:00:38]} 44. Kd3 {[%clk 0:00:23]}  Ba5 {[%clk 0:00:32]} 45. f3 {[%clk 0:00:20]}  Bd8 {[%clk 0:00:30]} 46. g4 {[%clk 0:00:20]}  Bf6 {[%clk 0:00:30]} 47. Ne2 {[%clk 0:00:15]}  Be5 {[%clk 0:00:30]} 48. h3 {[%clk 0:00:16]}  Kc6 {[%clk 0:00:27]} 49. Kc4 {[%clk 0:00:16]}  h5 {[%clk 0:00:27]} 50. gxh5 {[%clk 0:00:07]}  gxh5 {[%clk 0:00:28]} 51. Nc1 {[%clk 0:00:07]}  f6 {[%clk 0:00:24]} 52. Nd3 {[%clk 0:00:08]}  Bg3 {[%clk 0:00:24]} 53. Nb4+ {[%clk 0:00:08]}  Kb7 {[%clk 0:00:24]} 54. Kb5 {[%clk 0:00:09]}  Bf2 {[%clk 0:00:24]} 55. Nd3 {[%clk 0:00:07]}  Be3 {[%clk 0:00:23]} 56. Nb2 {[%clk 0:00:07]}  Kc7 {[%clk 0:00:22]} 57. Nc4 {[%clk 0:00:08]}  Bf2 {[%clk 0:00:23]} 58. Nd6 {[%clk 0:00:08]}  f5 {[%clk 0:00:22]} 59. Ne8+ {[%clk 0:00:06]}  Kd7 {[%clk 0:00:23]} 60. Nf6+ {[%clk 0:00:06]}  Ke7 {[%clk 0:00:23]} 61. Nxh5 {[%clk 0:00:07]}  e5 {[%clk 0:00:22]} 62. Kc4 {[%clk 0:00:06]}  e4 {[%clk 0:00:21]} 63. fxe4 {[%clk 0:00:06]}  fxe4 {[%clk 0:00:22]} 64. Nf4 {[%clk 0:00:07]}  Kf6 {[%clk 0:00:21]} 65. Kd5 {[%clk 0:00:03]}  Kg5 {[%clk 0:00:13]} 66. c6 {[%clk 0:00:03]}  Bb6 {[%clk 0:00:13]} 67. Ne2 {[%clk 0:00:03]}  Kh4 {[%clk 0:00:13]} 68. Kxe4 {[%clk 0:00:03]}  Kxh3 {[%clk 0:00:13]} 69. Kf5 {[%clk 0:00:03]}  Kh4 {[%clk 0:00:13]} 70. Nd4 {[%clk 0:00:03]}  Kh5 {[%clk 0:00:11]} 71. Nb5 {[%clk 0:00:03]}  Kh6 {[%clk 0:00:12]} 72. Kf6 {[%clk 0:00:03]}  Kh7 {[%clk 0:00:12]} 73. Kf7 {[%clk 0:00:04]}  Kh6 {[%clk 0:00:13]} 74. Nc3 {[%clk 0:00:04]}  Kg5 {[%clk 0:00:13]} 75. Nd5 {[%clk 0:00:04]}  Ba5 {[%clk 0:00:13]} 76. Ke6 {[%clk 0:00:04]}  Kg6 {[%clk 0:00:13]} 77. Ke7 {[%clk 0:00:03]}  Kf5 {[%clk 0:00:13]} 78. Kd7 {[%clk 0:00:04]}  Ke5 {[%clk 0:00:13]} 79. Ne7 {[%clk 0:00:04]}  Bb6 {[%clk 0:00:09]} 80. Nc8 {[%clk 0:00:04]}  Ba5 {[%clk 0:00:10]} 81. Nd6 {[%clk 0:00:04]}  Kd5 {[%clk 0:00:10]} 82. Nb7 {[%clk 0:00:04]}  Bb6 {[%clk 0:00:10]} 83. Nd6 {[%clk 0:00:03]}  Ba5 {[%clk 0:00:10]} 84. Nf5 {[%clk 0:00:04]}  Bb6 {[%clk 0:00:11]} 85. Ne3+ {[%clk 0:00:03]}  Kd4 {[%clk 0:00:10]} 86. Nc2+ {[%clk 0:00:04]}  Kc4 {[%clk 0:00:11]} 87. Na3+ {[%clk 0:00:04]}  Kb4 {[%clk 0:00:11]} 88. Nb1 {[%clk 0:00:05]}  Kc4 {[%clk 0:00:11]} 89. Nd2+ {[%clk 0:00:06]}  Kd4 {[%clk 0:00:11]} 90. Nf3+ {[%clk 0:00:06]}  Kd5 {[%clk 0:00:12]} 91. Ng5 {[%clk 0:00:06]}  Ba5 {[%clk 0:00:12]} 92. Nh7 {[%clk 0:00:06]}  Bb6 {[%clk 0:00:12]} 93. Nf6+ {[%clk 0:00:06]}  Kd4 {[%clk 0:00:13]} 94. Kc8 {[%clk 0:00:06]}  Kc5 {[%clk 0:00:13]} 95. Kb7 {[%clk 0:00:07]}  Ba5 {[%clk 0:00:13]} 96. Ne8 {[%clk 0:00:06]}  Kd5 {[%clk 0:00:13]} 97. Nc7+ {[%clk 0:00:07]}  Kc5 {[%clk 0:00:14]} 98. Ne6+ {[%clk 0:00:07]}  Kd5 {[%clk 0:00:14]} 99. Nf4+ {[%clk 0:00:07]}  Kd6 {[%clk 0:00:14]} 100. Nd3 {[%clk 0:00:07]}  Bd8 {[%clk 0:00:14]} 101. Nb4 {[%clk 0:00:05]}  Kc5 {[%clk 0:00:14]} 102. Kc8 {[%clk 0:00:02]}  Ba5 {[%clk 0:00:14]} 103. c7 {[%clk 0:00:02]}  Bxc7 {[%clk 0:00:14]} 1/2-1/2


[Site "https://www.chess.com"]

[Event "Titled Tuesday Blitz October 25 Late 2022"]
[White "Yeritsyan, Hayk"]
[Black "chess50years"]
[WhiteFideId "13307320"]
[WhiteElo "2411"]
[BlackElo "1200"]
[Result "1-0"]
[Round "02"]
[TimeControl "180+1"]
[Date "2022.10.26"]
[WhiteClock "0:01:01"]
[BlackClock "0:00:34"]

1. d4 {[%clk 0:02:58]}  Nf6 {[%clk 0:02:54]} 2. Nf3 {[%clk 0:02:58]}  e6 {[%clk 0:02:48]} 3. e3 {[%clk 0:02:58]}  b6 {[%clk 0:02:46]} 4. Bd3 {[%clk 0:02:59]}  Bb7 {[%clk 0:02:46]} 5. Nbd2 {[%clk 0:02:58]}  Be7 {[%clk 0:02:45]} 6. O-O {[%clk 0:02:58]}  d5 {[%clk 0:02:43]} 7. Ne5 {[%clk 0:02:58]}  O-O {[%clk 0:02:39]} 8. f4 {[%clk 0:02:58]}  Ne4 {[%clk 0:02:37]} 9. Qe2 {[%clk 0:02:51]}  f6 {[%clk 0:02:32]} 10. Nef3 {[%clk 0:02:48]}  Nd7 {[%clk 0:02:31]} 11. c4 {[%clk 0:02:48]}  f5 {[%clk 0:02:18]} 12. Ne5 {[%clk 0:02:46]}  Nxe5 {[%clk 0:02:18]} 13. fxe5 {[%clk 0:02:46]}  a5 {[%clk 0:02:11]} 14. cxd5 {[%clk 0:02:42]}  Bxd5 {[%clk 0:02:06]} 15. Nxe4 {[%clk 0:02:31]}  fxe4 {[%clk 0:01:58]} 16. Bc4 {[%clk 0:02:31]}  Rxf1+ {[%clk 0:01:54]} 17. Qxf1 {[%clk 0:02:32]}  Qd7 {[%clk 0:01:48]} 18. Bd2 {[%clk 0:02:31]}  Rf8 {[%clk 0:01:46]} 19. Qe2 {[%clk 0:02:31]}  h6 {[%clk 0:01:38]} 20. a3 {[%clk 0:02:27]}  Bg5 {[%clk 0:01:26]} 21. Rf1 {[%clk 0:02:24]}  Rxf1+ {[%clk 0:01:22]} 22. Qxf1 {[%clk 0:02:25]}  Qc6 {[%clk 0:01:17]} 23. b3 {[%clk 0:02:14]}  a4 {[%clk 0:01:11]} 24. Bxd5 {[%clk 0:02:09]}  Qxd5 {[%clk 0:01:10]} 25. bxa4 {[%clk 0:02:05]}  Qb3 {[%clk 0:01:08]} 26. Qc1 {[%clk 0:01:58]}  Qxa4 {[%clk 0:01:05]} 27. g3 {[%clk 0:01:56]}  c5 {[%clk 0:00:59]} 28. h4 {[%clk 0:01:50]}  Be7 {[%clk 0:00:54]} 29. dxc5 {[%clk 0:01:43]}  Bxc5 {[%clk 0:00:53]} 30. Kg2 {[%clk 0:01:42]}  Qxa3 {[%clk 0:00:50]} 31. Qc4 {[%clk 0:01:38]}  Kf7 {[%clk 0:00:44]} 32. Qxe4 {[%clk 0:01:33]}  Qb2 {[%clk 0:00:38]} 33. Qb7+ {[%clk 0:01:10]}  Kg8 {[%clk 0:00:35]} 34. Qd7 {[%clk 0:01:01]}  Qxd2+ {[%clk 0:00:34]} 35. Qxd2 {[%clk 0:01:01]} 1-0


[Site "https://www.chess.com"]

[Event "Titled Tuesday Blitz October 25 Late 2022"]
[White "Yuan, Qingyu"]
[Black "Toncheva, Nadya"]
[WhiteFideId "8609772"]
[BlackFideId "2924056"]
[WhiteElo "2359"]
[BlackElo "2101"]
[Result "0-1"]
[Round "02"]
[TimeControl "180+1"]
[Date "2022.10.26"]
[WhiteClock "0:00:03"]
[BlackClock "0:00:09"]

1. d4 {[%clk 0:03:00]}  d5 {[%clk 0:02:59]} 2. Bf4 {[%clk 0:03:01]}  Nf6 {[%clk 0:02:59]} 3. e3 {[%clk 0:03:01]}  c5 {[%clk 0:02:59]} 4. Nf3 {[%clk 0:03:02]}  Nc6 {[%clk 0:02:59]} 5. Nbd2 {[%clk 0:03:02]}  Qb6 {[%clk 0:02:59]} 6. dxc5 {[%clk 0:03:03]}  Qxb2 {[%clk 0:02:59]} 7. Rb1 {[%clk 0:03:03]}  Qc3 {[%clk 0:03:00]} 8. Bb5 {[%clk 0:03:01]}  e6 {[%clk 0:02:58]} 9. O-O {[%clk 0:02:52]}  Qxc5 {[%clk 0:02:29]} 10. c4 {[%clk 0:02:33]}  Be7 {[%clk 0:02:08]} 11. cxd5 {[%clk 0:02:03]}  exd5 {[%clk 0:01:30]} 12. Nd4 {[%clk 0:01:50]}  Bd7 {[%clk 0:01:09]} 13. Qa4 {[%clk 0:01:25]}  O-O {[%clk 0:00:47]} 14. Rfc1 {[%clk 0:01:09]}  Qa3 {[%clk 0:00:47]} 15. Bxc6 {[%clk 0:00:47]}  bxc6 {[%clk 0:00:46]} 16. Qxa3 {[%clk 0:00:44]}  Bxa3 {[%clk 0:00:45]} 17. Rc3 {[%clk 0:00:45]}  c5 {[%clk 0:00:38]} 18. Nc2 {[%clk 0:00:37]}  Bb4 {[%clk 0:00:37]} 19. Nxb4 {[%clk 0:00:37]}  cxb4 {[%clk 0:00:38]} 20. Rxb4 {[%clk 0:00:37]}  Rac8 {[%clk 0:00:34]} 21. Rxc8 {[%clk 0:00:33]}  Rxc8 {[%clk 0:00:35]} 22. h3 {[%clk 0:00:27]}  Bf5 {[%clk 0:00:35]} 23. Nb3 {[%clk 0:00:20]}  h6 {[%clk 0:00:34]} 24. Rb7 {[%clk 0:00:19]}  a6 {[%clk 0:00:30]} 25. Ra7 {[%clk 0:00:19]}  Bd3 {[%clk 0:00:29]} 26. Be5 {[%clk 0:00:17]}  Ne4 {[%clk 0:00:27]} 27. f3 {[%clk 0:00:11]}  Nc3 {[%clk 0:00:23]} 28. Bxc3 {[%clk 0:00:04]}  Rxc3 {[%clk 0:00:23]} 29. Kf2 {[%clk 0:00:04]}  Bc4 {[%clk 0:00:24]} 30. Nd4 {[%clk 0:00:04]}  Ra3 {[%clk 0:00:22]} 31. Kg3 {[%clk 0:00:03]}  Rxa2 {[%clk 0:00:22]} 32. h4 {[%clk 0:00:03]}  Bf1 {[%clk 0:00:22]} 33. Kf4 {[%clk 0:00:03]}  Rxg2 {[%clk 0:00:21]} 34. Nf5 {[%clk 0:00:03]}  Ra2 {[%clk 0:00:18]} 35. Ne7+ {[%clk 0:00:03]}  Kh7 {[%clk 0:00:18]} 36. Nxd5 {[%clk 0:00:04]}  Ra4+ {[%clk 0:00:17]} 37. e4 {[%clk 0:00:04]}  Bc4 {[%clk 0:00:11]} 38. Ne7 {[%clk 0:00:02]}  Be6 {[%clk 0:00:10]} 39. h5 {[%clk 0:00:02]}  Ra5 {[%clk 0:00:09]} 40. e5 {[%clk 0:00:02]}  Ra4+ {[%clk 0:00:09]} 41. Kg3 {[%clk 0:00:03]}  Ra1 {[%clk 0:00:09]} 42. Kf4 {[%clk 0:00:03]}  a5 {[%clk 0:00:10]} 43. Nc6 {[%clk 0:00:03]}  a4 {[%clk 0:00:10]} 44. Nd8 {[%clk 0:00:04]}  a3 {[%clk 0:00:10]} 45. Nxe6 {[%clk 0:00:04]}  fxe6 {[%clk 0:00:11]} 46. Ra8 {[%clk 0:00:05]}  a2 {[%clk 0:00:09]} 47. Ra7 {[%clk 0:00:05]}  Kg8 {[%clk 0:00:08]} 48. Ra5 {[%clk 0:00:05]}  Kf7 {[%clk 0:00:09]} 49. Ra7+ {[%clk 0:00:05]}  Ke8 {[%clk 0:00:08]} 50. Ra8+ {[%clk 0:00:06]}  Kd7 {[%clk 0:00:08]} 51. Ra7+ {[%clk 0:00:06]}  Kc6 {[%clk 0:00:09]} 52. Ra3 {[%clk 0:00:07]}  Kd5 {[%clk 0:00:09]} 53. Ra8 {[%clk 0:00:07]}  Kd4 {[%clk 0:00:09]} 54. Ra7 {[%clk 0:00:07]}  Kd3 {[%clk 0:00:09]} 55. Ra6 {[%clk 0:00:08]}  Ke2 {[%clk 0:00:10]} 56. Ra8 {[%clk 0:00:08]}  Kf2 {[%clk 0:00:10]} 57. Ra7 {[%clk 0:00:08]}  Kg2 {[%clk 0:00:10]} 58. Rxg7+ {[%clk 0:00:08]}  Kh3 {[%clk 0:00:10]} 59. Ra7 {[%clk 0:00:09]}  Kh4 {[%clk 0:00:11]} 60. Ra6 {[%clk 0:00:09]}  Kxh5 {[%clk 0:00:11]} 61. Ra8 {[%clk 0:00:10]}  Kh4 {[%clk 0:00:10]} 62. Ra6 {[%clk 0:00:08]}  h5 {[%clk 0:00:10]} 63. Rxe6 {[%clk 0:00:08]}  Rg1 {[%clk 0:00:08]} 64. Ra6 {[%clk 0:00:08]}  a1=Q {[%clk 0:00:08]} 65. Rxa1 {[%clk 0:00:09]}  Rxa1 {[%clk 0:00:08]} 66. e6 {[%clk 0:00:08]}  Re1 {[%clk 0:00:09]} 67. Kf5 {[%clk 0:00:07]}  Kh3 {[%clk 0:00:09]} 68. f4 {[%clk 0:00:05]}  h4 {[%clk 0:00:10]} 69. Kf6 {[%clk 0:00:05]}  Kg2 {[%clk 0:00:10]} 70. f5 {[%clk 0:00:05]}  h3 {[%clk 0:00:10]} 71. Ke7 {[%clk 0:00:06]}  h2 {[%clk 0:00:10]} 72. f6 {[%clk 0:00:07]}  h1=Q {[%clk 0:00:10]} 73. f7 {[%clk 0:00:07]}  Qh4+ {[%clk 0:00:10]} 74. Kd7 {[%clk 0:00:07]}  Rd1+ {[%clk 0:00:10]} 75. Kc7 {[%clk 0:00:07]}  Qd8+ {[%clk 0:00:11]} 76. Kc6 {[%clk 0:00:07]}  Qe7 {[%clk 0:00:10]} 77. Kb5 {[%clk 0:00:08]}  Qxe6 {[%clk 0:00:10]} 78. f8=Q {[%clk 0:00:08]}  Qb3+ {[%clk 0:00:10]} 79. Kc6 {[%clk 0:00:07]}  Qc4+ {[%clk 0:00:10]} 80. Kb7 {[%clk 0:00:04]}  Rb1+ {[%clk 0:00:10]} 81. Qb4 {[%clk 0:00:03]}  Qxb4+ {[%clk 0:00:09]} 0-1


[Site "https://www.chess.com"]

[Event "Titled Tuesday Blitz October 25 Late 2022"]
[White "Yurtseven, Melih"]
[Black "Kopacz, Grzegorz"]
[WhiteFideId "6312160"]
[BlackFideId "1109880"]
[WhiteElo "2218"]
[BlackElo "2037"]
[Result "0-1"]
[Round "02"]
[TimeControl "180+1"]
[Date "2022.10.26"]
[WhiteClock "0:00:01"]
[BlackClock "0:00:24"]

1. Nf3 {[%clk 0:02:58]}  c5 {[%clk 0:02:59]} 2. g3 {[%clk 0:02:23]}  g6 {[%clk 0:02:57]} 3. Bg2 {[%clk 0:02:17]}  Bg7 {[%clk 0:02:56]} 4. c4 {[%clk 0:02:16]}  Nc6 {[%clk 0:02:55]} 5. Nc3 {[%clk 0:02:16]}  e6 {[%clk 0:02:49]} 6. h4 {[%clk 0:01:50]}  h5 {[%clk 0:02:47]} 7. d4 {[%clk 0:01:45]}  cxd4 {[%clk 0:02:39]} 8. Nb5 {[%clk 0:01:44]}  d5 {[%clk 0:02:39]} 9. Nfxd4 {[%clk 0:01:42]}  Nge7 {[%clk 0:02:32]} 10. cxd5 {[%clk 0:01:38]}  Nxd4 {[%clk 0:02:21]} 11. Nxd4 {[%clk 0:01:37]}  Nxd5 {[%clk 0:02:20]} 12. O-O {[%clk 0:01:36]}  O-O {[%clk 0:02:20]} 13. Nb3 {[%clk 0:01:25]}  b6 {[%clk 0:02:11]} 14. Bxd5 {[%clk 0:01:21]}  exd5 {[%clk 0:02:04]} 15. Nd4 {[%clk 0:01:12]}  Bb7 {[%clk 0:01:52]} 16. Be3 {[%clk 0:01:12]}  Qd7 {[%clk 0:01:48]} 17. Qd3 {[%clk 0:01:08]}  Rac8 {[%clk 0:01:42]} 18. Rac1 {[%clk 0:01:07]}  Rxc1 {[%clk 0:01:40]} 19. Rxc1 {[%clk 0:01:07]}  Rc8 {[%clk 0:01:39]} 20. Rxc8+ {[%clk 0:01:06]}  Qxc8 {[%clk 0:01:39]} 21. Nf3 {[%clk 0:00:52]}  Bxb2 {[%clk 0:01:27]} 22. Bd4 {[%clk 0:00:45]}  Bxd4 {[%clk 0:01:14]} 23. Qxd4 {[%clk 0:00:46]}  Qc4 {[%clk 0:01:13]} 24. Qf6 {[%clk 0:00:35]}  d4 {[%clk 0:00:51]} 25. Kh2 {[%clk 0:00:11]}  Bxf3 {[%clk 0:00:46]} 26. Qxf3 {[%clk 0:00:12]}  Qxa2 {[%clk 0:00:43]} 27. Qe4 {[%clk 0:00:08]}  Qc4 {[%clk 0:00:29]} 28. Qa8+ {[%clk 0:00:01]}  Kh7 {[%clk 0:00:24]} 29. Qxa7 {[%clk 0:00:01]}  b5 {[%clk 0:00:24]} 0-1


[Site "https://www.chess.com"]

[Event "Titled Tuesday Blitz October 25 Late 2022"]
[White "Zakaryan, David"]
[Black "Zeman, Matyas"]
[WhiteFideId "24101923"]
[BlackFideId "364398"]
[WhiteElo "2409"]
[BlackElo "2254"]
[Result "1-0"]
[Round "02"]
[TimeControl "180+1"]
[Date "2022.10.26"]
[WhiteClock "0:00:38"]
[BlackClock "0:00:04"]

1. e4 {[%clk 0:03:00]}  c6 {[%clk 0:02:59]} 2. d4 {[%clk 0:03:00]}  d5 {[%clk 0:03:00]} 3. e5 {[%clk 0:03:00]}  Bf5 {[%clk 0:03:00]} 4. Nd2 {[%clk 0:02:59]}  e6 {[%clk 0:02:58]} 5. Nb3 {[%clk 0:02:59]}  Nd7 {[%clk 0:02:57]} 6. Nf3 {[%clk 0:02:59]}  h6 {[%clk 0:02:52]} 7. Be2 {[%clk 0:02:59]}  Ne7 {[%clk 0:02:52]} 8. O-O {[%clk 0:02:59]}  g5 {[%clk 0:02:52]} 9. Bd2 {[%clk 0:02:56]}  Bg7 {[%clk 0:02:52]} 10. a4 {[%clk 0:02:49]}  a5 {[%clk 0:02:43]} 11. Be3 {[%clk 0:02:17]}  Ng6 {[%clk 0:02:42]} 12. Bd3 {[%clk 0:02:12]}  Bxd3 {[%clk 0:02:32]} 13. Qxd3 {[%clk 0:02:12]}  O-O {[%clk 0:02:33]} 14. c4 {[%clk 0:02:08]}  dxc4 {[%clk 0:02:30]} 15. Qxc4 {[%clk 0:02:09]}  Nb6 {[%clk 0:02:30]} 16. Qc2 {[%clk 0:02:08]}  Nd5 {[%clk 0:02:31]} 17. Nc5 {[%clk 0:02:09]}  b6 {[%clk 0:02:24]} 18. Nxe6 {[%clk 0:02:06]}  fxe6 {[%clk 0:02:22]} 19. Qxg6 {[%clk 0:02:06]}  Qe8 {[%clk 0:02:16]} 20. Qxe8 {[%clk 0:02:03]}  Rfxe8 {[%clk 0:02:17]} 21. Rac1 {[%clk 0:02:03]}  Rac8 {[%clk 0:02:17]} 22. Nd2 {[%clk 0:02:00]}  Bf8 {[%clk 0:02:15]} 23. Ne4 {[%clk 0:01:59]}  Kf7 {[%clk 0:02:12]} 24. Bd2 {[%clk 0:01:56]}  Kg6 {[%clk 0:02:01]} 25. Rc2 {[%clk 0:01:52]}  Kf5 {[%clk 0:01:34]} 26. f3 {[%clk 0:01:51]}  c5 {[%clk 0:01:13]} 27. g4+ {[%clk 0:01:45]}  Kg6 {[%clk 0:01:13]} 28. Rfc1 {[%clk 0:01:46]}  Rc6 {[%clk 0:01:05]} 29. dxc5 {[%clk 0:01:35]}  Rec8 {[%clk 0:01:05]} 30. Kf2 {[%clk 0:01:27]}  bxc5 {[%clk 0:00:26]} 31. Bxa5 {[%clk 0:01:14]}  Bg7 {[%clk 0:00:25]} 32. Rxc5 {[%clk 0:01:06]}  Rxc5 {[%clk 0:00:23]} 33. Rxc5 {[%clk 0:01:07]}  Rxc5 {[%clk 0:00:20]} 34. Nxc5 {[%clk 0:01:08]}  Bxe5 {[%clk 0:00:21]} 35. Nxe6 {[%clk 0:01:06]}  Bxb2 {[%clk 0:00:20]} 36. Bb6 {[%clk 0:01:01]}  Kf7 {[%clk 0:00:19]} 37. Bd4 {[%clk 0:00:55]}  Bc1 {[%clk 0:00:07]} 38. Nc5 {[%clk 0:00:47]}  Bf4 {[%clk 0:00:07]} 39. h3 {[%clk 0:00:45]}  Ke8 {[%clk 0:00:07]} 40. a5 {[%clk 0:00:44]}  Nc7 {[%clk 0:00:06]} 41. a6 {[%clk 0:00:42]}  Kd8 {[%clk 0:00:06]} 42. a7 {[%clk 0:00:40]}  Kc8 {[%clk 0:00:06]} 43. Ne6 {[%clk 0:00:40]}  Kb7 {[%clk 0:00:03]} 44. Nxc7 {[%clk 0:00:38]}  Bxc7 {[%clk 0:00:04]} 45. Ke2 {[%clk 0:00:38]} 1-0


[Site "https://www.chess.com"]

[Event "Titled Tuesday Blitz October 25 Late 2022"]
[White "Zhigalko, Sergei"]
[Black "Lorenzo De La Riva, Lazaro"]
[WhiteFideId "13502956"]
[BlackFideId "2268809"]
[WhiteElo "2662"]
[BlackElo "2325"]
[Result "1-0"]
[Round "02"]
[TimeControl "180+1"]
[Date "2022.10.26"]
[WhiteClock "0:00:03"]
[BlackClock "0:00:06"]

1. e4 {[%clk 0:03:00]}  e5 {[%clk 0:02:59]} 2. Nf3 {[%clk 0:03:00]}  Nc6 {[%clk 0:02:59]} 3. Bc4 {[%clk 0:03:01]}  Nf6 {[%clk 0:02:58]} 4. d3 {[%clk 0:03:00]}  h6 {[%clk 0:02:56]} 5. O-O {[%clk 0:02:59]}  Bc5 {[%clk 0:02:54]} 6. Be3 {[%clk 0:02:58]}  Bb6 {[%clk 0:02:54]} 7. Nbd2 {[%clk 0:02:54]}  O-O {[%clk 0:02:52]} 8. Re1 {[%clk 0:02:54]}  d6 {[%clk 0:02:51]} 9. c3 {[%clk 0:02:54]}  Ne7 {[%clk 0:02:43]} 10. Nf1 {[%clk 0:02:48]}  Ng6 {[%clk 0:02:42]} 11. Ng3 {[%clk 0:02:48]}  c6 {[%clk 0:02:40]} 12. d4 {[%clk 0:02:43]}  Re8 {[%clk 0:02:12]} 13. h3 {[%clk 0:02:18]}  Qe7 {[%clk 0:02:03]} 14. Nf5 {[%clk 0:02:11]}  Qf8 {[%clk 0:01:49]} 15. dxe5 {[%clk 0:01:46]}  dxe5 {[%clk 0:01:46]} 16. Qc2 {[%clk 0:01:26]}  Bxe3 {[%clk 0:01:44]} 17. Rxe3 {[%clk 0:01:22]}  Be6 {[%clk 0:01:43]} 18. Bxe6 {[%clk 0:01:14]}  fxe6 {[%clk 0:01:42]} 19. Ng3 {[%clk 0:01:14]}  Qf7 {[%clk 0:01:34]} 20. Rd1 {[%clk 0:01:11]}  Rad8 {[%clk 0:01:30]} 21. Red3 {[%clk 0:01:11]}  Qe7 {[%clk 0:01:25]} 22. Qb3 {[%clk 0:01:04]}  Rxd3 {[%clk 0:01:24]} 23. Rxd3 {[%clk 0:01:05]}  Kh7 {[%clk 0:01:09]} 24. Rd1 {[%clk 0:01:04]}  b6 {[%clk 0:01:04]} 25. a4 {[%clk 0:01:01]}  Nd7 {[%clk 0:01:01]} 26. Qc4 {[%clk 0:00:59]}  c5 {[%clk 0:00:47]} 27. Qd3 {[%clk 0:00:50]}  Nf6 {[%clk 0:00:45]} 28. Qd6 {[%clk 0:00:47]}  Qxd6 {[%clk 0:00:40]} 29. Rxd6 {[%clk 0:00:48]}  Kg8 {[%clk 0:00:39]} 30. h4 {[%clk 0:00:24]}  h5 {[%clk 0:00:23]} 31. Ng5 {[%clk 0:00:18]}  Nf8 {[%clk 0:00:24]} 32. f3 {[%clk 0:00:15]}  g6 {[%clk 0:00:16]} 33. Nf1 {[%clk 0:00:14]}  N6h7 {[%clk 0:00:14]} 34. Nxh7 {[%clk 0:00:12]}  Kxh7 {[%clk 0:00:11]} 35. Ne3 {[%clk 0:00:12]}  Kg7 {[%clk 0:00:10]} 36. Nc4 {[%clk 0:00:09]}  Kf6 {[%clk 0:00:11]} 37. Kf2 {[%clk 0:00:09]}  Rb8 {[%clk 0:00:09]} 38. Rc6 {[%clk 0:00:06]}  Rd8 {[%clk 0:00:07]} 39. Ke2 {[%clk 0:00:05]}  Nd7 {[%clk 0:00:05]} 40. Rc7 {[%clk 0:00:05]}  a6 {[%clk 0:00:06]} 41. Rb7 {[%clk 0:00:03]}  b5 {[%clk 0:00:06]} 42. axb5 {[%clk 0:00:04]}  axb5 {[%clk 0:00:07]} 43. Rxb5 {[%clk 0:00:05]}  Ra8 {[%clk 0:00:07]} 44. Rb7 {[%clk 0:00:05]}  Nf8 {[%clk 0:00:06]} 45. Nd6 {[%clk 0:00:05]}  g5 {[%clk 0:00:05]} 46. hxg5+ {[%clk 0:00:04]}  Kxg5 {[%clk 0:00:06]} 47. Ke3 {[%clk 0:00:04]}  Kg6 {[%clk 0:00:06]} 48. Nc4 {[%clk 0:00:04]}  h4 {[%clk 0:00:07]} 49. Nxe5+ {[%clk 0:00:04]}  Kf6 {[%clk 0:00:08]} 50. Nd3 {[%clk 0:00:03]}  Kg5 {[%clk 0:00:09]} 51. Nxc5 {[%clk 0:00:03]}  Ng6 {[%clk 0:00:10]} 52. Nxe6+ {[%clk 0:00:03]}  Kf6 {[%clk 0:00:10]} 53. Nf4 {[%clk 0:00:03]}  Ne5 {[%clk 0:00:11]} 54. Nd5+ {[%clk 0:00:03]}  Ke6 {[%clk 0:00:11]} 55. Rb6+ {[%clk 0:00:03]}  Kd7 {[%clk 0:00:11]} 56. b3 {[%clk 0:00:03]}  Ra2 {[%clk 0:00:10]} 57. Kd4 {[%clk 0:00:03]}  Nc6+ {[%clk 0:00:09]} 58. Kc5 {[%clk 0:00:03]}  Nd8 {[%clk 0:00:09]} 59. Nf6+ {[%clk 0:00:03]}  Kc7 {[%clk 0:00:09]} 60. Nd5+ {[%clk 0:00:03]}  Kd7 {[%clk 0:00:09]} 61. Rg6 {[%clk 0:00:04]}  Ne6+ {[%clk 0:00:08]} 62. Kc4 {[%clk 0:00:03]}  Ra6 {[%clk 0:00:07]} 63. b4 {[%clk 0:00:03]}  Rc6+ {[%clk 0:00:07]} 64. Kd3 {[%clk 0:00:02]}  Nc5+ {[%clk 0:00:07]} 65. bxc5 {[%clk 0:00:03]}  Rxg6 {[%clk 0:00:07]} 66. Ne3 {[%clk 0:00:04]}  Rg3 {[%clk 0:00:06]} 67. Kd4 {[%clk 0:00:04]}  Kc6 {[%clk 0:00:06]} 68. c4 {[%clk 0:00:03]}  Rg8 {[%clk 0:00:06]} 69. f4 {[%clk 0:00:03]}  Rg3 {[%clk 0:00:06]} 70. e5 {[%clk 0:00:03]}  Rg4 {[%clk 0:00:06]} 71. Nxg4 {[%clk 0:00:03]} 1-0


[Site "https://www.chess.com"]